bitfinex/quotes_BTCUSD_20220207
["timestamp","ask_amount","ask_price","bid_price","bid_amount"]
[1644194126508,1.047498,41838.0,41837.0,0.157]
[1644194126709,1.047498,41838.0,41837.0,0.21678132]
[1644194128006,1.147498,41838.0,41837.0,0.21678132]
[1644194128210,1.047498,41838.0,41837.0,0.21678132]
[1644194128413,0.71684,41838.0,41837.0,0.21678132]
[1644194131156,0.71684,41838.0,41837.0,0.157]
[1644194131356,0.71684,41838.0,41837.0,0.21678133]
[1644194133214,0.03239768,41838.0,41837.0,0.85937657]
[1644194134115,0.1,41841.0,41838.0,0.63790017]
[1644194134315,0.1,41841.0,41840.0,0.330632]
[1644194134816,0.1,41841.0,41840.0,0.380632]
[1644194136857,0.1,41841.0,41839.0,0.00011565]
[1644194137057,0.20939199,41840.0,41839.0,0.00011565]
[1644194137257,0.03412787,41844.0,41838.0,0.4]
[1644194137456,0.059778,41845.0,41838.0,0.40011565]
[1644194137659,0.00047421,41843.0,41838.0,0.66994393]
[1644194138059,0.00047421,41843.0,41838.0,0.40011565]
[1644194138258,0.119561,41841.0,41838.0,0.45011565]
[1644194139263,0.0953131,41846.0,41839.0,0.330658]
[1644194139463,0.0953131,41846.0,41843.0,0.07785434]
[1644194139861,0.0953131,41846.0,41840.0,0.00011565]
[1644194139862,0.0953131,41846.0,41839.0,0.00011565]
[1644194140061,0.0953131,41846.0,41840.0,0.330658]
[1644194140265,0.0355381,41846.0,41842.0,0.19011829]
[1644194140508,0.0355381,41846.0,41843.0,0.30607]
[1644194140704,0.0355381,41846.0,41842.0,0.19011829]
[1644194140903,0.0355381,41846.0,41842.0,0.19023394]
[1644194141103,0.0355381,41846.0,41842.0,0.08315933]
[1644194141304,0.03608424,41846.0,41842.0,0.19292753]
[1644194142103,0.03608424,41846.0,41843.0,0.330658]
[1644194142304,0.0355381,41846.0,41843.0,0.330658]
[1644194142504,0.03608424,41846.0,41843.0,0.330658]
[1644194143504,0.0355381,41846.0,41843.0,0.330658]
[1644194144559,0.0355381,41846.0,41843.0,0.305658]
[1644194146564,0.05,41851.0,41844.0,1.2]
[1644194146763,0.05,41851.0,41845.0,0.356031]
[1644194146764,0.0106,41846.0,41845.0,0.356031]
[1644194146962,0.05546198,41859.0,41847.0,0.305615]
[1644194147162,0.05546198,41859.0,41858.0,0.06977913]
[1644194147863,0.05506766,41859.0,41858.0,0.06977913]
[1644194148117,0.0200531,41859.0,41858.0,0.06977913]
[1644194148317,0.0200531,41859.0,41858.0,0.40049613]
[1644194148615,0.05,41867.0,41859.0,1.2]
[1644194148810,0.05,41876.0,41860.0,0.280724]
[1644194149010,0.5,41874.0,41870.0,0.26582908]
[1644194149710,0.24374509,41876.0,41870.0,0.05]
[1644194149911,0.00054589,41874.0,41869.0,0.11946472]
[1644194150111,0.00054589,41874.0,41870.0,0.05]
[1644194150513,0.00054589,41874.0,41860.0,0.2181]
[1644194150715,0.29374509,41876.0,41866.0,0.19173963]
[1644194150912,0.24374509,41876.0,41860.0,0.2181]
[1644194151112,0.05,41872.0,41863.0,0.0734561]
[1644194151314,0.00050023,41869.0,41863.0,0.0734561]
[1644194151512,0.00050023,41869.0,41861.0,0.278364]
[1644194151960,0.00050023,41869.0,41863.0,0.20391207]
[1644194152162,0.22135462,41869.0,41864.0,0.33064]
[1644194152360,0.00050025,41867.0,41864.0,0.33064]
[1644194152860,0.05,41866.0,41864.0,0.33064]
[1644194153264,0.22135462,41869.0,41864.0,0.33064]
[1644194153459,0.22135462,41869.0,41864.0,0.57311355]
[1644194153659,0.22135462,41869.0,41864.0,0.33064]
[1644194153660,0.00050025,41867.0,41864.0,0.33064]
[1644194154461,0.05,41868.0,41864.0,0.33064]
[1644194155266,0.27071351,41868.0,41864.0,0.33064]
[1644194155511,0.27071351,41868.0,41860.0,0.43194458]
[1644194155705,0.27071351,41868.0,41860.0,0.26384458]
[1644194156306,0.05,41868.0,41860.0,0.26384458]
[1644194157610,0.05,41872.0,41866.0,0.06734461]
[1644194157805,0.05,41877.0,41867.0,0.33064]
[1644194158007,0.5,41876.0,41866.0,0.06734461]
[1644194158206,0.01852488,41880.0,41872.0,0.19156612]
[1644194158207,0.03523995,41878.0,41872.0,0.19156612]
[1644194158410,0.01852488,41880.0,41873.0,0.08079445]
[1644194158608,0.00050409,41874.0,41862.0,0.3833428]
[1644194158807,0.05,41868.0,41863.0,0.33064]
[1644194159007,0.05,41869.0,41863.0,0.33064]
[1644194159658,0.05,41869.0,41866.0,0.22600182]
[1644194159859,0.05,41869.0,41867.0,0.33061]
[1644194160158,0.05,41869.0,41866.0,0.22600182]
[1644194160358,0.05,41869.0,41867.0,0.33064]
[1644194160659,0.05,41871.0,41867.0,0.33064]
[1644194161258,0.05974,41872.0,41867.0,0.33064]
[1644194161457,0.05974,41872.0,41868.0,0.278288]
[1644194161659,0.05974,41872.0,41866.0,0.22600182]
[1644194161961,0.17921176,41879.0,41866.0,0.27600182]
[1644194161962,0.059735,41875.0,41866.0,0.27600182]
[1644194162160,0.2177,41882.0,41881.0,0.24667667]
[1644194162359,0.2177,41882.0,41876.0,0.07609313]
[1644194162360,1.04834,41882.0,41876.0,0.07609313]
[1644194162559,0.5,41882.0,41866.0,0.05]
[1644194162860,0.5,41882.0,41869.0,0.31749264]
[1644194163110,0.26807779,41880.0,41871.0,0.23923431]
[1644194163312,0.26807779,41880.0,41869.0,0.31749264]
[1644194163510,0.26807779,41880.0,41878.0,0.22081488]
[1644194163911,0.26807779,41880.0,41878.0,0.05]
[1644194164313,0.23972884,41870.0,41858.0,1.2656]
[1644194164514,0.23972884,41870.0,41862.0,0.33064]
[1644194164717,0.05,41869.0,41862.0,0.33064]
[1644194165113,0.23972884,41870.0,41865.0,0.26434819]
[1644194165314,0.059742,41871.0,41865.0,0.26434819]
[1644194165512,0.059742,41871.0,41867.0,0.06302732]
[1644194165713,0.119491,41878.0,41867.0,0.06302732]
[1644194165714,0.059732,41883.0,41867.0,0.06302732]
[1644194166013,0.05,41879.0,41868.0,0.33064]
[1644194166216,0.21972055,41878.0,41875.0,0.19814902]
[1644194166614,0.02032083,41881.0,41875.0,0.19814902]
[1644194167057,0.00052071,41879.0,41875.0,0.19814902]
[1644194167259,0.00052071,41879.0,41870.0,0.02]
[1644194167461,0.00052071,41879.0,41871.0,0.33064]
[1644194167660,0.22694484,41879.0,41871.0,0.05]
[1644194167859,0.22642413,41879.0,41871.0,0.05]
[1644194168057,0.059729,41881.0,41874.0,0.07250958]
[1644194168258,0.00052073,41877.0,41875.0,0.19675289]
[1644194168459,0.00052073,41877.0,41876.0,0.35064]
[1644194168658,0.00052073,41877.0,41876.0,0.33064]
[1644194168862,0.00052073,41877.0,41875.0,0.1860954]
[1644194169060,0.24829965,41881.0,41876.0,0.278156]
[1644194169262,0.05,41877.0,41867.0,0.3382653]
[1644194169462,0.05,41869.0,41866.0,0.01804862]
[1644194169665,0.05,41869.0,41867.0,0.278215]
[1644194169861,0.00052071,41879.0,41867.0,0.278215]
[1644194170061,0.00052071,41879.0,41866.0,0.02155471]
[1644194170062,0.00052071,41879.0,41870.0,0.22731148]
[1644194170263,0.23747885,41873.0,41870.0,0.22731148]
[1644194170707,0.00050129,41875.0,41870.0,0.22731148]
[1644194171421,0.059736,41876.0,41870.0,0.22731148]
[1644194171607,0.23677867,41877.0,41870.0,0.22731148]
[1644194172007,0.00048138,41875.0,41870.0,0.27731148]
[1644194172208,0.00048138,41875.0,41871.0,0.278194]
[1644194172810,0.00024996,41884.0,41871.0,0.278194]
[1644194173110,0.059729,41886.0,41871.0,0.25737319]
[1644194173111,0.05,41880.0,41871.0,0.25737319]
[1644194173311,0.25080775,41881.0,41870.0,0.41553895]
[1644194173512,0.25080775,41881.0,41871.0,0.278186]
[1644194173513,0.05,41877.0,41871.0,0.278186]
[1644194173712,0.05,41877.0,41871.0,0.29686008]
[1644194174354,0.19763913,41874.0,41871.0,0.29686008]
[1644194174753,0.00048494,41876.0,41871.0,0.29686008]
[1644194174953,0.06021794,41876.0,41871.0,0.29686008]
[1644194175153,0.059733,41876.0,41871.0,0.29686008]
[1644194175355,0.05,41876.0,41871.0,0.29686008]
[1644194175555,0.05050486,41876.0,41871.0,0.29686008]
[1644194175957,0.05050486,41876.0,41874.0,0.47007775]
[1644194175958,0.00050486,41876.0,41874.0,0.47007775]
[1644194176357,0.00050486,41876.0,41875.0,0.278164]
[1644194176560,0.059728,41880.0,41875.0,0.278164]
[1644194176766,0.05050484,41877.0,41875.0,0.278164]
[1644194176958,0.05050484,41877.0,41866.0,0.2038]
[1644194176959,0.20804699,41877.0,41866.0,0.2038]
[1644194177161,0.05,41872.0,41867.0,0.05]
[1644194177359,0.05,41872.0,41866.0,0.2538]
[1644194177558,0.20804699,41877.0,41868.0,0.278211]
[1644194177559,0.05,41870.0,41868.0,0.278211]
[1644194177757,0.47356708,41877.0,41869.0,0.278213]
[1644194178008,0.00050239,41872.0,41867.0,0.32434016]
[1644194178203,0.00050239,41872.0,41868.0,0.278215]
[1644194178702,0.00050239,41872.0,41867.0,0.37434016]
[1644194179001,0.109738,41875.0,41867.0,0.37434016]
[1644194179205,0.0001776,41872.0,41867.0,0.05]
[1644194179501,0.0001776,41872.0,41865.0,0.25067719]
[1644194180103,0.0001776,41872.0,41860.0,0.2136506]
[1644194180104,0.05,41870.0,41860.0,0.2136506]
[1644194180308,0.05974,41872.0,41860.0,0.2136506]
[1644194180309,0.05,41865.0,41860.0,0.2136506]
[1644194180503,0.05,41865.0,41861.0,0.278276]
[1644194180702,0.24946765,41864.0,41861.0,0.278276]
[1644194180902,0.045,41862.0,41861.0,0.278276]
[1644194183358,0.045,41862.0,41853.0,0.685]
[1644194183559,0.045,41855.0,41850.0,0.278358]
[1644194183758,0.0479,41861.0,41850.0,0.278358]
[1644194183759,0.045,41859.0,41850.0,0.278358]
[1644194184058,0.045,41854.0,41849.0,0.03895996]
[1644194184256,0.045,41854.0,41849.0,0.31991262]
[1644194184461,0.045,41854.0,41849.0,0.03895996]
[1644194185361,0.045538,41854.0,41849.0,0.03895996]
[1644194186020,0.045538,41854.0,41847.0,0.26994415]
[1644194186218,0.045,41854.0,41847.0,0.26994415]
[1644194186521,0.00051879,41854.0,41847.0,0.26494415]
[1644194186718,0.045,41851.0,41847.0,0.26494415]
[1644194186916,0.045,41851.0,41848.0,0.278378]
[1644194187318,0.045,41851.0,41848.0,0.328378]
[1644194187516,0.045,41851.0,41850.0,0.278367]
[1644194188518,0.045,41854.0,41847.0,0.005]
[1644194188820,0.0005188,41853.0,41848.0,0.278379]
[1644194189018,0.0005188,41853.0,41846.0,0.42865021]
[1644194189253,0.0005188,41853.0,41848.0,0.328381]
[1644194189453,0.0005188,41853.0,41850.0,0.278366]
[1644194189657,0.045,41851.0,41850.0,0.278366]
[1644194189854,0.0479,41855.0,41850.0,0.278366]
[1644194190054,0.045,41851.0,41850.0,0.278366]
[1644194191556,0.00050222,41853.0,41850.0,0.278366]
[1644194192161,0.045,41851.0,41850.0,0.278366]
[1644194193712,0.045,41851.0,41845.0,0.02389344]
[1644194194012,0.00050334,41853.0,41846.0,0.278394]
[1644194194212,0.00050334,41853.0,41846.0,0.05]
[1644194194413,0.045,41852.0,41848.0,0.278381]
[1644194194816,0.04550334,41852.0,41848.0,0.278381]
[1644194195813,0.24907674,41854.0,41848.0,0.278381]
[1644194196012,0.00050334,41852.0,41848.0,0.278381]
[1644194196233,0.00050334,41852.0,41851.0,0.06499906]
[1644194196413,0.00050334,41852.0,41851.0,0.278358]
[1644194196613,0.04550334,41852.0,41851.0,0.278358]
[1644194197061,0.045,41852.0,41851.0,0.278358]
[1644194197262,0.23604295,41854.0,41846.0,0.01874744]
[1644194197466,0.23604295,41854.0,41846.0,0.09017828]
[1644194197661,0.23604295,41854.0,41846.0,0.14017828]
[1644194197861,0.23604295,41854.0,41847.0,0.278386]
[1644194198066,0.045,41849.0,41846.0,0.03930053]
[1644194198267,0.33763638,41848.0,41846.0,0.03930053]
[1644194198464,0.66284076,41847.0,41846.0,0.03930053]
[1644194198763,0.71074076,41847.0,41846.0,0.03930053]
[1644194198963,0.75905752,41847.0,41846.0,0.03930053]
[1644194199563,0.75905752,41847.0,41846.0,0.03391593]
[1644194199965,0.81884052,41847.0,41845.0,0.003]
[1644194200163,0.63294658,41846.0,41845.0,0.003]
[1644194200364,0.87584658,41846.0,41845.0,0.003]
[1644194200809,0.82584658,41846.0,41845.0,0.003]
[1644194201008,0.423527,41846.0,41845.0,0.003]
[1644194201808,0.0929,41846.0,41845.0,0.003]
[1644194205660,0.0479,41846.0,41845.0,0.003]
[1644194206258,0.00050032,41849.0,41845.0,0.003]
[1644194206659,0.0479,41851.0,41845.0,0.003]
[1644194206660,0.045,41848.0,41845.0,0.003]
[1644194207258,0.00050032,41849.0,41845.0,0.003]
[1644194207460,0.045,41846.0,41845.0,0.003]
[1644194207660,0.375677,41846.0,41845.0,0.003]
[1644194208016,0.425677,41846.0,41845.0,0.003]
[1644194208806,0.375677,41846.0,41845.0,0.003]
[1644194210010,0.475677,41846.0,41845.0,0.003]
[1644194210208,0.05993275,41849.0,41845.0,0.003]
[1644194210209,0.059774,41849.0,41845.0,0.003]
[1644194210410,2.38203421,41852.0,41845.0,0.003]
[1644194210411,2.48680321,41852.0,41845.0,0.003]
[1644194210612,0.045,41848.0,41845.0,0.003]
[1644194210811,0.00015875,41849.0,41846.0,0.0732207]
[1644194211013,0.00015875,41849.0,41847.0,0.30657992]
[1644194211212,0.00015875,41849.0,41848.0,0.23526409]
[1644194211411,0.00015875,41849.0,41848.0,0.87013363]
[1644194211412,0.71702875,41849.0,41848.0,0.87013363]
[1644194211612,0.71664035,41849.0,41848.0,0.87013363]
[1644194211863,0.71664035,41849.0,41848.0,0.97013363]
[1644194212061,0.71664035,41849.0,41848.0,0.87013363]
[1644194213066,0.71664035,41849.0,41848.0,0.56594109]
[1644194213267,0.71253947,41849.0,41848.0,0.56594109]
[1644194213465,0.71253947,41849.0,41848.0,0.86780744]
[1644194213665,0.71253947,41849.0,41848.0,0.91780744]
[1644194214867,0.71253947,41849.0,41848.0,1.01780744]
[1644194215265,0.71253947,41849.0,41848.0,0.86780744]
[1644194215910,0.71253947,41849.0,41848.0,0.91780744]
[1644194217808,0.71253947,41849.0,41848.0,0.61594109]
[1644194218208,0.71253947,41849.0,41845.0,0.003]
[1644194219260,0.71253947,41849.0,41845.0,0.22737484]
[1644194219261,0.71308291,41849.0,41845.0,0.22737484]
[1644194219662,0.71308291,41849.0,41848.0,0.25449885]
[1644194220067,0.75753947,41849.0,41845.0,0.003]
[1644194220266,0.045,41848.0,41845.0,0.003]
[1644194220965,0.045,41848.0,41845.0,0.24360599]
[1644194225209,0.045,41848.0,41845.0,0.003]
[1644194226758,0.32468527,41848.0,41845.0,0.003]
[1644194227063,0.32834542,41848.0,41845.0,0.003]
[1644194227559,0.330677,41847.0,41845.0,0.003]
[1644194227758,0.21405907,41846.0,41845.0,0.003]
[1644194227959,0.045,41848.0,41845.0,0.003]
[1644194228760,0.32495925,41848.0,41845.0,0.003]
[1644194228959,0.20554584,41846.0,41845.0,0.000547]
[1644194229963,0.83695185,41846.0,41845.0,0.000547]
[1644194230359,0.88485185,41846.0,41845.0,0.000547]
[1644194230619,1.14334036,41846.0,41845.0,0.000547]
[1644194230817,1.24334036,41846.0,41845.0,0.000547]
[1644194231618,1.24334036,41846.0,41845.0,0.020547]
[1644194231921,1.34334036,41846.0,41845.0,0.020547]
[1644194232120,0.78706551,41846.0,41845.0,0.020547]
[1644194232720,0.73706551,41846.0,41845.0,0.020547]
[1644194233220,0.478577,41846.0,41845.0,0.020547]
[1644194235862,0.378577,41846.0,41845.0,0.020547]
[1644194236062,0.104779,41848.0,41845.0,0.020547]
[1644194236063,0.045,41848.0,41845.0,0.020547]
[1644194240910,0.24276815,41847.0,41845.0,0.020547]
[1644194241111,0.60793127,41846.0,41845.0,0.020547]
[1644194241759,0.27725427,41846.0,41845.0,0.020547]
[1644194241963,0.24276815,41847.0,41845.0,0.020547]
[1644194242162,0.330677,41846.0,41845.0,0.020547]
[1644194242563,0.430677,41846.0,41845.0,0.020547]
[1644194242763,0.71003056,41846.0,41845.0,0.020547]
[1644194243365,0.430677,41846.0,41845.0,0.020547]
[1644194244163,0.930677,41846.0,41845.0,0.020547]
[1644194247813,0.830677,41846.0,41845.0,0.020547]
[1644194248012,0.47,41846.0,41845.0,0.020547]
[1644194248512,0.47,41846.0,41845.0,0.035247]
[1644194249363,0.47,41846.0,41845.0,0.35147911]
[1644194249565,0.7130089,41849.0,41845.0,0.35147911]
[1644194249765,0.7130089,41849.0,41848.0,0.005]
[1644194250266,0.7130089,41849.0,41848.0,0.86490523]
[1644194250468,0.71253947,41849.0,41848.0,1.37958338]
[1644194250663,0.71253947,41849.0,41848.0,1.11953811]
[1644194251464,0.71253947,41849.0,41848.0,0.91490523]
[1644194251664,0.71253947,41849.0,41848.0,0.345377]
[1644194251863,0.71253947,41849.0,41848.0,0.0147]
[1644194252867,1.04321647,41849.0,41848.0,0.0147]
[1644194253515,1.09111647,41849.0,41848.0,0.0147]
[1644194253915,0.76043947,41849.0,41848.0,0.0147]
[1644194254316,0.71253947,41849.0,41848.0,0.0147]
[1644194254616,0.71253947,41849.0,41846.0,0.0147]
[1644194255218,0.045,41847.0,41846.0,0.0147]
[1644194255421,0.23760369,41847.0,41846.0,0.0147]
[1644194255619,0.52437853,41847.0,41846.0,0.0147]
[1644194255822,0.95505553,41847.0,41846.0,0.0147]
[1644194256019,1.00295553,41847.0,41846.0,0.0147]
[1644194257762,0.71618069,41847.0,41846.0,0.0147]
[1644194257966,0.67118069,41847.0,41846.0,0.0147]
[1644194258164,0.378577,41847.0,41846.0,0.0147]
[1644194258565,0.0479,41847.0,41846.0,0.0147]
[1644194258964,0.0479,41847.0,41840.0,0.02126781]
[1644194259366,0.0929,41847.0,41840.0,0.02126781]
[1644194259967,0.0929,41847.0,41844.0,0.005]
[1644194260168,0.71253947,41849.0,41844.0,0.07671156]
[1644194260369,0.71253947,41849.0,41848.0,0.005]
[1644194261018,0.71253947,41849.0,41848.0,0.20347677]
[1644194261218,0.2890542,41861.0,41848.0,0.76328557]
[1644194261419,0.24550924,41866.0,41848.0,0.76328557]
[1644194261420,0.5,41860.0,41858.0,0.005]
[1644194261620,0.5,41860.0,41850.0,0.53530988]
[1644194261621,0.5,41860.0,41859.0,0.07169079]
[1644194262017,0.23427458,41871.0,41859.0,0.005]
[1644194262018,0.00024996,41864.0,41859.0,0.005]
[1644194262218,0.19719594,41864.0,41859.0,0.005]
[1644194262419,0.19719594,41864.0,41856.0,0.005]
[1644194262420,0.24219594,41864.0,41856.0,0.005]
[1644194262622,0.045,41857.0,41852.0,0.02030126]
[1644194262818,0.29484969,41863.0,41852.0,0.02030126]
[1644194262819,0.045,41860.0,41852.0,0.02030126]
[1644194263017,0.28003785,41859.0,41852.0,0.02030126]
[1644194263222,0.28015418,41859.0,41857.0,0.25800359]
[1644194263417,0.330677,41858.0,41857.0,0.25800359]
[1644194263620,0.28563454,41862.0,41857.0,0.25800359]
[1644194263817,0.05024996,41863.0,41857.0,0.25800359]
[1644194263818,0.15024996,41863.0,41857.0,0.25800359]
[1644194264019,0.10024996,41863.0,41857.0,0.25800359]
[1644194264268,0.00047117,41860.0,41857.0,0.25800359]
[1644194264967,0.29219594,41864.0,41859.0,0.07123677]
[1644194264968,0.00024996,41864.0,41859.0,0.07123677]
[1644194265172,0.00024996,41865.0,41863.0,0.005]
[1644194265367,0.00024996,41866.0,41864.0,0.005]
[1644194265571,0.00024996,41866.0,41857.0,0.40800359]
[1644194265572,0.29725163,41870.0,41857.0,0.005]
[1644194265573,0.375677,41865.0,41857.0,0.005]
[1644194265771,0.29725163,41870.0,41857.0,0.005]
[1644194265772,0.045,41860.0,41857.0,0.005]
[1644194266068,0.25820093,41860.0,41857.0,0.005]
[1644194266266,0.00024976,41864.0,41857.0,0.005]
[1644194266472,0.00047076,41861.0,41857.0,0.005]
[1644194266667,0.00047076,41861.0,41857.0,0.30700223]
[1644194266870,0.00047076,41861.0,41858.0,0.330677]
[1644194267266,0.00047076,41861.0,41858.0,0.52269823]
[1644194267470,0.31367214,41868.0,41859.0,0.5]
[1644194267667,0.00025035,41864.0,41860.0,0.330677]
[1644194268023,0.00047075,41862.0,41860.0,0.40054184]
[1644194268216,0.00047075,41862.0,41861.0,0.005]
[1644194268419,0.00047075,41862.0,41861.0,0.167862]
[1644194268817,0.00025035,41865.0,41861.0,0.4705666]
[1644194269017,0.00025035,41865.0,41864.0,0.56743736]
[1644194269317,0.045,41868.0,41864.0,0.23679336]
[1644194269517,0.00025035,41867.0,41864.0,0.23679336]
[1644194269718,0.045,41868.0,41864.0,0.23679336]
[1644194269919,0.045,41868.0,41865.0,0.005]
[1644194270119,0.04517757,41868.0,41865.0,0.005]
[1644194270319,0.04517757,41868.0,41864.0,0.23679336]
[1644194270922,0.00017757,41868.0,41865.0,0.330677]
[1644194271120,0.00025035,41870.0,41865.0,0.25573119]
[1644194271323,0.08055822,41871.0,41866.0,0.005]
[1644194271521,0.00017757,41868.0,41866.0,0.005]
[1644194272367,0.00025035,41870.0,41866.0,0.005]
[1644194272571,0.0005237,41869.0,41866.0,0.005]
[1644194273572,0.00025035,41870.0,41866.0,0.005]
[1644194273771,0.0005237,41870.0,41866.0,0.005]
[1644194273968,0.00077405,41870.0,41866.0,0.005]
[1644194274168,0.00077405,41870.0,41867.0,0.08006472]
[1644194274367,0.00077405,41870.0,41866.0,0.005]
[1644194274368,0.0005237,41870.0,41866.0,0.005]
[1644194274569,0.00077405,41870.0,41866.0,0.005]
[1644194274771,0.00025035,41870.0,41866.0,0.005]
[1644194274971,0.0005237,41870.0,41866.0,0.005]
[1644194275171,0.00077405,41870.0,41866.0,0.005]
[1644194275370,0.00077405,41870.0,41867.0,0.005]
[1644194275615,0.0005237,41870.0,41867.0,0.005]
[1644194275814,0.25714636,41871.0,41867.0,0.005]
[1644194276218,0.25769056,41871.0,41867.0,0.005]
[1644194277014,0.25714636,41871.0,41867.0,0.005]
[1644194277414,0.25769055,41871.0,41867.0,0.005]
[1644194278216,0.25714636,41871.0,41867.0,0.005]
[1644194278615,0.25769055,41871.0,41867.0,0.005]
[1644194279463,0.25714636,41871.0,41867.0,0.005]
[1644194279864,0.25769055,41871.0,41867.0,0.005]
[1644194280666,0.25714636,41871.0,41867.0,0.005]
[1644194280864,0.25769055,41871.0,41867.0,0.005]
[1644194281864,0.25714636,41871.0,41867.0,0.005]
[1644194282265,0.25769055,41871.0,41867.0,0.005]
[1644194283117,0.03580857,41871.0,41868.0,0.005]
[1644194283417,0.03610241,41871.0,41868.0,0.005]
[1644194284216,0.045,41869.0,41868.0,0.005]
[1644194284616,0.045,41869.0,41857.0,0.5093949]
[1644194284617,0.05974748,41867.0,41857.0,0.5093949]
[1644194284820,0.05974748,41867.0,41855.0,0.20608533]
[1644194284821,0.045,41859.0,41858.0,0.162866]
[1644194285018,0.23738711,41861.0,41855.0,0.02428533]
[1644194285220,0.0479,41860.0,41855.0,0.02428533]
[1644194285818,0.045,41859.0,41855.0,0.02428533]
[1644194286016,0.0479,41858.0,41855.0,0.02428533]
[1644194286217,0.0479,41857.0,41855.0,0.02428533]
[1644194288464,0.0479,41857.0,41855.0,0.005]
[1644194289066,0.0479,41857.0,41854.0,0.11506928]
[1644194289471,0.0479,41857.0,41849.0,0.00050639]
[1644194289472,0.10976478,41856.0,41849.0,0.00050639]
[1644194289669,0.05,41850.0,41849.0,0.00050639]
[1644194289870,0.74985785,41850.0,41849.0,0.00050639]
[1644194290072,0.79985785,41850.0,41849.0,0.00050639]
[1644194290269,1.19818182,41850.0,41849.0,0.00050639]
[1644194290522,0.330677,41849.0,41844.0,0.02096035]
[1644194290715,0.380677,41845.0,41844.0,0.02096035]
[1644194290915,0.82343757,41845.0,41844.0,0.02096035]
[1644194291115,0.8792415,41845.0,41844.0,0.02096035]
[1644194291315,0.578577,41845.0,41844.0,0.02096035]
[1644194291514,0.86109937,41845.0,41844.0,0.02096035]
[1644194292314,0.578577,41845.0,41844.0,0.02096035]
[1644194292515,0.37419577,41845.0,41840.0,0.00311641]
[1644194292715,0.52419577,41845.0,41840.0,0.00311641]
[1644194292914,0.21815827,41843.0,41840.0,0.00311641]
[1644194293115,0.32584527,41843.0,41840.0,0.00311641]
[1644194293315,0.42584527,41843.0,41840.0,0.00311641]
[1644194294567,0.47584527,41843.0,41840.0,0.00311641]
[1644194294764,0.05,41841.0,41840.0,0.00311641]
[1644194294965,0.05,41841.0,41840.0,0.003]
[1644194297268,0.70693702,41841.0,41840.0,0.003]
[1644194297471,0.70693702,41841.0,41829.0,0.0011]
[1644194297472,1.2,41840.0,41829.0,0.0011]
[1644194297770,0.05,41831.0,41829.0,0.0011]
[1644194298031,0.05,41831.0,41827.0,0.001]
[1644194298032,0.55,41829.0,41827.0,0.001]
[1644194298223,0.42971744,41828.0,41825.0,0.002]
[1644194298421,1.38128678,41827.0,41820.0,0.0022]
[1644194298619,0.05,41821.0,41820.0,0.0022]
[1644194298920,0.0979,41821.0,41820.0,0.0022]
[1644194299118,0.52741734,41820.0,41817.0,0.0011]
[1644194299318,0.0479,41819.0,41817.0,0.0011]
[1644194300223,0.0479,41823.0,41817.0,0.0011]
[1644194300421,0.24400825,41820.0,41817.0,0.0011]
[1644194301122,0.29400825,41820.0,41817.0,0.0011]
[1644194301522,0.24400825,41820.0,41817.0,0.0011]
[1644194301773,0.24400825,41820.0,41817.0,0.00160801]
[1644194302772,0.24400825,41820.0,41817.0,0.0011]
[1644194302974,0.24400825,41820.0,41817.0,0.00161185]
[1644194303177,0.29400825,41820.0,41817.0,0.00161185]
[1644194303774,0.24400825,41820.0,41817.0,0.00161185]
[1644194303975,0.24400825,41820.0,41817.0,0.0011]
[1644194304275,0.36363725,41820.0,41817.0,0.0015675]
[1644194304474,0.119629,41820.0,41817.0,0.0015675]
[1644194304677,0.059814,41821.0,41817.0,0.29583569]
[1644194304880,0.559801,41825.0,41817.0,0.34583569]
[1644194305078,0.5,41825.0,41817.0,0.34536819]
[1644194305274,0.5,41825.0,41817.0,0.44583572]
[1644194305717,0.91661324,41826.0,41821.0,0.24339425]
[1644194305916,0.91661324,41826.0,41821.0,0.23839425]
[1644194307018,0.91661324,41826.0,41817.0,0.34536819]
[1644194307219,0.91661324,41826.0,41817.0,0.29536819]
[1644194307620,0.059805,41825.0,41817.0,0.29536819]
[1644194307818,0.059805,41825.0,41820.0,0.00047037]
[1644194308718,0.059805,41825.0,41817.0,0.29536819]
[1644194308919,0.059805,41825.0,41820.0,0.00047037]
[1644194309974,0.330677,41824.0,41818.0,0.0011]
[1644194310182,0.109816,41820.0,41818.0,0.0011]
[1644194310571,0.30718317,41820.0,41818.0,0.0011]
[1644194310974,0.25040323,41819.0,41818.0,0.0011]
[1644194312775,0.96741392,41819.0,41818.0,0.0011]
[1644194313220,1.06741392,41819.0,41818.0,0.0011]
[1644194313722,0.45033509,41817.0,41816.0,0.00046786]
[1644194313922,0.88981398,41817.0,41816.0,0.00058551]
[1644194314221,0.93981398,41817.0,41816.0,0.00046786]
[1644194314621,0.98981398,41817.0,41816.0,0.00046786]
[1644194314823,0.98981398,41817.0,41814.0,0.00011765]
[1644194315023,0.05,41815.0,41814.0,0.00046754]
[1644194315225,0.55,41815.0,41814.0,0.00058519]
[1644194315421,0.65,41815.0,41814.0,0.00046754]
[1644194316123,0.55,41815.0,41813.0,0.00121765]
[1644194316323,0.55,41815.0,41813.0,0.0011]
[1644194316324,0.5,41815.0,41813.0,0.0011]
[1644194317774,0.05,41814.0,41813.0,0.0011]
[1644194318372,0.05,41814.0,41810.0,0.003]
[1644194318373,0.3,41813.0,41810.0,0.003]
[1644194318574,0.05,41811.0,41807.0,0.01457564]
[1644194318773,0.05,41808.0,41807.0,0.01457564]
[1644194318977,0.05,41808.0,41807.0,0.00290685]
[1644194319470,0.29427305,41808.0,41807.0,0.00290685]
[1644194319670,0.06166879,41808.0,41807.0,0.00290685]
[1644194319870,0.01166879,41808.0,41807.0,0.00290685]
[1644194320274,0.92723022,41812.0,41808.0,0.6]
[1644194320717,0.92723022,41812.0,41807.0,0.01457564]
[1644194321718,0.05,41809.0,41807.0,0.01457564]
[1644194321921,0.97723022,41812.0,41807.0,0.01457564]
[1644194322125,0.97723022,41812.0,41807.0,0.01508693]
[1644194322318,0.05,41809.0,41807.0,0.01508693]